bitfinex-derivatives/quotes_SOLF0:USTF0_20250924
["timestamp","ask_amount","ask_price","bid_price","bid_amount"]
[1758674832984,1.32753449,214.35,214.28,3.8696338]
[1758674833180,7.7,214.31,214.28,3.8696338]
[1758674833381,1.32753449,214.32,214.27,3.8696338]
[1758674833687,9.02753449,214.35,214.29,7.53]
[1758674834282,1.32753449,214.38,214.31,7.53]
[1758674835182,1.32753449,214.39,214.31,11.7277]
[1758674835589,1.32753449,214.39,214.31,7.53]
[1758674836089,1.32753449,214.37,214.31,7.53]
[1758674836684,7.7,214.36,214.29,3.8696338]
[1758674836889,1.32753449,214.35,214.28,4.1982]
[1758674837685,1.32753449,214.33,214.27,3.8696338]
[1758674837888,9.02753449,214.33,214.26,11.3996338]
[1758674838093,7.7,214.3,214.26,7.53]
[1758674840687,7.7,214.3,214.23,62.0993]
[1758674840897,7.7,214.3,214.23,57.9]
[1758674841091,9.77704147,214.34,214.24,7.53]
[1758674841291,13.97444147,214.34,214.26,4.1986]
[1758674841493,7.7,214.34,214.24,7.53]
[1758674841697,2.07704147,214.41,214.28,7.53]
[1758674841895,7.7,214.4,214.28,7.53]
[1758674842599,7.7,214.4,214.29,4.1981]
[1758674843908,4.197,214.36,214.29,4.1981]
[1758674845212,7.62,214.37,214.3,4.1978]
[1758674845806,4.197,214.36,214.28,11.7283]
[1758674846207,65.2788,214.38,214.25,68.2296338]
[1758674846510,65.2742,214.4,214.25,68.2296338]
[1758674846511,4.1979,214.31,214.25,64.36]
[1758674846805,9.69704147,214.41,214.26,7.33]
[1758674847407,7.62,214.36,214.29,4.1981]
[1758674847601,7.62,214.36,214.26,7.33]
[1758674849607,4.1973,214.34,214.28,4.1983]
[1758674849808,7.62,214.36,214.28,4.1983]
[1758674850000,7.62,214.36,214.26,7.33]
[1758674851911,7.62,214.36,214.26,11.5286]
[1758674852108,7.62,214.36,214.26,7.33]
[1758674852307,7.62,214.33,214.27,4.1985]
[1758674853908,11.8175,214.33,214.27,4.1985]
[1758674854412,7.62,214.35,214.22,52.7296338]
[1758674854813,11.818,214.31,214.22,52.7296338]
[1758674855015,11.818,214.31,214.23,7.33]
[1758674855814,11.818,214.31,214.25,4.1989]
[1758674856014,7.62,214.31,214.23,7.33]
[1758674857916,7.62,214.32,214.26,4.1987]
[1758674858818,11.8177,214.32,214.26,4.1987]
[1758674859520,4.1979,214.31,214.26,4.1987]
[1758674859721,65.2941,214.33,214.22,48.86]
[1758674860218,11.8187,214.27,214.2,7.33]
[1758674860816,4.1989,214.26,214.2,7.33]
[1758674863528,11.8191,214.25,214.2,7.33]
[1758674863724,11.8191,214.25,214.19,11.53]
[1758674864027,7.62,214.25,214.2,4.1999]
[1758674864325,7.62,214.25,214.21,7.33]
[1758674864528,7.62,214.25,214.18,4.2003]
[1758674865524,7.62,214.25,214.19,4.2]
[1758674868128,7.62,214.25,214.2,11.5298]
[1758674868327,2.07704147,214.31,214.2,11.5298]
[1758674868523,7.62,214.3,214.2,11.5298]
[1758674868930,2.07704147,214.31,214.2,11.5298]
[1758674869327,4.1987,214.27,214.2,11.5298]
[1758674869528,7.62,214.27,214.17,7.33]
[1758674869727,7.62,214.24,214.14,3.8696338]
[1758674869932,7.62,214.24,214.13,11.1996338]
[1758674870331,2.07704147,214.25,214.13,11.1996338]
[1758674870928,11.8196,214.22,214.14,4.2011]
[1758674871131,7.62,214.22,214.14,4.2011]
[1758674872422,11.8197,214.22,214.14,4.2011]
[1758674876238,11.8197,214.22,214.15,4.2008]
[1758674878938,4.1999,214.21,214.13,7.33]
[1758674879140,4.1999,214.21,214.1,115.3]
[1758674879141,7.62,214.22,214.11,3.8696338]
[1758674879337,67.39684147,214.25,214.1,126.5196338]
[1758674879338,7.64,214.23,214.1,126.5196338]
[1758674879847,67.40574147,214.22,214.1,11.2196338]
[1758674880142,7.64,214.21,214.1,7.35]
[1758674880332,4.2009,214.16,214.1,7.35]
[1758674880533,7.64,214.18,214.1,7.35]
[1758674881043,7.64,214.18,214.08,3.8696338]
[1758674881345,7.64,214.18,214.07,15.4220338]
[1758674881547,7.64,214.14,214.07,15.4220338]
[1758674881847,7.64,214.14,214.08,3.8696338]
[1758674882034,7.64,214.14,214.08,4.2022]
[1758674883841,7.64,214.24,214.09,7.35]
[1758674884045,7.64,214.22,214.09,7.35]
[1758674884545,7.64,214.19,214.09,7.35]
[1758674885644,7.64,214.16,214.1,4.2019]
[1758674885845,7.64,214.16,214.06,3.8696338]
[1758674886243,7.64,214.16,214.08,4.2023]
[1758674886442,7.64,214.16,214.07,7.35]
[1758674887847,7.64,214.17,214.11,4.2016]
[1758674888647,11.8407,214.17,214.11,4.2016]
[1758674890343,7.64,214.17,214.07,7.35]
[1758674891449,65.3397,214.18,214.07,11.5524]
[1758674891843,7.64,214.17,214.07,11.5524]
[1758674892048,7.64,214.17,214.03,7.35]
[1758674892049,72.992,214.14,214.03,7.35]
[1758674892441,4.2022,214.09,214.03,7.35]
[1758674892743,7.25,214.1,214.03,7.35]
[1758674893343,7.25,214.1,214.0,15.6134338]
[1758674893542,79.58312645,214.13,214.0,11.7438]
[1758674893543,65.358,214.12,214.0,11.7438]
[1758674893737,7.25,214.11,214.0,11.7438]
[1758674893937,65.358,214.12,214.0,11.7438]
[1758674894250,4.2021,214.09,214.0,11.7438]
[1758674894546,7.25,214.11,214.0,7.54]
[1758674895851,2.07704147,214.13,214.0,7.54]
[1758674895852,4.2023,214.09,214.02,4.2034]
[1758674896148,11.4523,214.09,214.02,4.2034]
[1758674896348,7.25,214.09,214.02,4.2034]
[1758674896549,7.25,214.09,214.03,4.2032]
[1758674899142,7.25,214.09,214.02,7.54]
[1758674899541,11.4522,214.09,214.02,11.7434]
[1758674900550,7.25,214.09,214.02,11.7434]
[1758674901249,7.25,214.09,214.03,4.2032]
[1758674901552,7.25,214.09,214.02,7.54]
[1758674901754,7.25,214.07,214.01,5.5355506]
[1758674902052,7.25,214.07,214.01,4.2036]
[1758674902454,7.25,214.07,213.99,13.0759506]
[1758674903052,7.25,214.07,213.99,11.744]
[1758674903053,7.25,214.05,213.99,11.744]
[1758674903648,4.2031,214.05,213.97,9.4059844]
[1758674903852,7.74,214.04,213.97,5.5363506]
[1758674904050,7.74,214.04,213.96,11.0396338]
[1758674904253,7.74,214.02,213.95,3.8696338]
[1758674904452,7.74,214.02,213.94,3.8696338]
[1758674904652,7.74,214.02,213.93,5.2015844]
[1758674905452,7.74,214.02,213.93,9.4067844]
[1758674905652,7.74,214.02,213.94,7.17]
[1758674906255,7.74,214.02,213.96,1.3319506]
[1758674906454,7.74,214.02,213.96,8.5019506]
[1758674906648,7.74,214.02,213.94,5.2015844]
[1758674907156,7.74,214.02,213.94,1.3319506]
[1758674907355,7.74,214.02,213.94,5.2015844]
[1758674907760,7.74,214.02,213.96,4.2046]
[1758674909457,11.9436,214.02,213.95,7.17]
[1758674910258,11.9436,214.02,213.95,11.3747]
[1758674910458,7.74,214.02,213.95,7.17]
[1758674911657,7.74,214.04,213.98,4.2041]
[1758674912056,7.74,214.04,213.99,4.204]
[1758674912358,7.74,214.09,214.02,7.17]
[1758674912860,7.74,214.09,213.99,8.5019506]
[1758674913058,7.74,214.07,213.99,7.17]
[1758674913262,7.74,214.07,213.99,8.5019506]
[1758674913560,11.9425,214.07,214.0,4.2037]
[1758674914762,7.74,214.05,213.99,8.5019506]
[1758674915359,11.943,214.05,213.99,8.5019506]
[1758674918163,7.74,214.05,213.99,12.7059506]
[1758674923263,7.74,214.05,213.99,16.5755844]
[1758674923465,7.74,214.05,214.0,4.2037]
[1758674923860,7.74,214.05,214.01,7.17]
[1758674924263,7.74,214.05,214.0,4.2037]
[1758674924771,7.74,214.05,214.01,7.17]
[1758674925066,7.74,214.05,214.0,4.2037]
[1758674925371,7.74,214.05,214.01,7.17]
[1758674926172,7.74,214.08,214.02,8.5019506]
[1758674926568,7.74,214.08,214.02,12.3715844]
[1758674926763,7.74,214.08,214.04,7.17]
[1758674927371,7.74,214.09,214.02,5.2015844]
[1758674927671,7.74,214.09,214.02,1.3319506]
[1758674928472,4.2024,214.08,214.02,1.3319506]
[1758674928972,7.74,214.09,214.02,5.5353506]
[1758674929170,7.74,214.09,214.02,12.3715844]
[1758674930773,7.74,214.09,214.03,4.2031]
[1758674931178,7.74,214.09,214.03,8.0727338]
[1758674931574,11.9422,214.09,214.03,8.0727338]
[1758674931776,11.9422,214.09,214.03,3.8696338]
[1758674932376,11.9422,214.09,214.02,12.3715844]
[1758674932576,7.74,214.09,214.02,12.3715844]
[1758674932881,7.74,214.09,214.02,11.0396338]
[1758674933767,1.3319506,214.08,214.02,3.8696338]
[1758674933967,7.18,214.07,214.03,7.41]
[1758674934181,7.18,214.07,214.04,7.41]
[1758674935076,7.18,214.1,214.04,11.2796338]
[1758674935278,12.7131506,214.14,214.06,15.4822338]
[1758674935478,12.7131506,214.14,214.06,11.2796338]
[1758674935679,11.3812,214.14,214.06,11.2796338]
[1758674936876,7.18,214.13,214.06,11.2796338]
[1758674937381,7.18,214.13,214.07,4.2024]
[1758674937979,11.3815,214.13,214.06,11.2796338]
[1758674938790,7.18,214.13,214.06,3.8696338]
[1758674938982,7.18,214.13,214.05,3.8696338]
[1758674939185,7.18,214.13,214.06,3.8696338]
[1758674939383,4.2021,214.1,214.06,3.8696338]
[1758674939588,11.3821,214.1,214.06,11.2796338]
[1758674939888,7.18,214.1,214.06,11.2796338]
[1758674940091,7.18,214.12,214.06,3.8696338]
[1758674940284,7.18,214.12,214.05,3.8696338]
[1758674941688,11.3816,214.12,214.05,8.0724338]
[1758674943890,11.3816,214.12,214.05,15.4824338]
[1758674944989,4.2018,214.11,214.05,11.2796338]
[1758674946397,7.18,214.12,214.05,11.2796338]
[1758674947001,11.3817,214.12,214.05,11.2796338]
[1758674947698,4.2018,214.11,214.05,11.2796338]
[1758674947999,11.3818,214.11,214.05,11.2796338]
[1758674948199,11.3818,214.11,214.05,7.41]
[1758674949201,7.18,214.11,214.05,7.41]
[1758674950301,8.5119506,214.13,214.07,7.41]
[1758674950800,8.5119506,214.13,214.06,3.8696338]
[1758674950801,1.3319506,214.13,214.08,4.2022]
[1758674951001,7.18,214.12,214.08,11.6122]
[1758674952298,7.18,214.12,214.09,7.41]
[1758674953507,11.5607,214.16,214.08,11.4096338]
[1758674954304,7.36,214.16,214.1,11.7418]
[1758674954504,7.36,214.16,214.1,7.54]
[1758674955301,7.36,214.16,214.11,4.2016]
[1758674955605,5.5323506,214.18,214.1,11.4096338]
[1758674955999,1.3319506,214.18,214.12,4.2013]
[1758674957703,7.36,214.17,214.1,3.8696338]
[1758674957914,7.36,214.17,214.09,4.2019]
[1758674958408,1.3319506,214.15,214.08,3.8696338]
[1758674958606,1.3319506,214.15,214.05,5.1830251]
[1758674958607,1.3319506,214.15,214.06,3.8696338]
[1758674958800,7.36,214.14,214.06,3.8696338]
[1758674959105,122.56,214.14,214.06,3.8696338]
[1758674959308,126.7612,214.14,214.06,8.0721338]
[1758674959507,126.7612,214.14,214.06,9.4040844]
[1758674959810,7.36,214.14,214.1,4.2018]
[1758674960110,18.51950449,214.18,214.1,7.54]
[1758674960111,119.4004,214.18,214.1,7.54]
[1758674960705,4.2007,214.17,214.1,7.54]
[1758674961106,7.36,214.16,214.1,7.54]
[1758674965111,7.36,214.16,214.1,11.7418]
[1758674966112,7.36,214.16,214.11,4.2016]
[1758674966912,7.36,214.16,214.12,7.18]
[1758674967109,11.6604,214.18,214.11,4.2016]
[1758674968915,11.6604,214.18,214.12,4.2014]
[1758674971315,7.46,214.18,214.12,7.18]
[1758674971505,7.46,214.22,214.12,7.18]
[1758674971704,7.46,214.22,214.14,3.8696338]
[1758674971910,7.46,214.22,214.17,4.2004]
[1758674972417,67.96,214.23,214.17,4.2004]
[1758674972711,75.42,214.23,214.17,4.2004]
[1758674973110,65.3037,214.3,214.17,7.18]
[1758674973111,14.17382972,214.26,214.17,7.18]
[1758674973317,119.7,214.25,214.17,7.18]
[1758674974307,119.7,214.25,214.19,4.2001]
[1758674975117,7.46,214.25,214.19,4.2001]
[1758674976214,7.46,214.26,214.21,4.1997]
[1758674976717,115.16,214.27,214.21,4.1997]
[1758674976918,122.62,214.27,214.21,4.1997]
[1758674977118,7.46,214.3,214.19,7.18]
[1758674977312,122.6,214.3,214.19,7.18]
[1758674978017,7.46,214.3,214.24,4.199]
[1758674978417,7.46,214.3,214.23,7.18]
[1758674979807,122.58,214.33,214.26,4.1987]
[1758674980012,122.58,214.33,214.26,7.18]
[1758674980609,122.58,214.33,214.22,67.40621342]
[1758674980610,122.58,214.33,214.29,7.18]
[1758674981610,122.58,214.33,214.29,11.378]
[1758674981815,4.1965,214.38,214.29,11.378]
[1758674981816,7.46,214.37,214.29,11.378]
[1758674982016,7.46,214.37,214.29,7.18]
[1758674982817,7.46,214.37,214.31,4.1976]
[1758674983312,7.46,214.37,214.29,11.378]
[1758674983716,7.46,214.37,214.26,67.39441342]
[1758674983717,7.46,214.37,214.25,7.18]
[1758674984514,11.6572,214.34,214.27,4.1986]
[1758674984920,11.6572,214.34,214.25,7.18]
[1758674985420,7.46,214.32,214.25,7.18]
[1758674985623,7.46,214.32,214.23,2.07971342]
[1758674986815,7.46,214.32,214.23,6.27901342]
[1758674987415,4.198,214.31,214.24,4.199]
[1758674988419,67.36231342,214.37,214.2,2.07971342]
[1758674988420,7.46,214.3,214.2,2.07971342]
[1758674988617,7.46,214.3,214.18,7.18]
[1758674989519,7.46,214.26,214.18,7.18]
[1758674990917,7.46,214.26,214.18,65.3391]
[1758674991218,11.6582,214.29,214.19,7.18]
[1758674991818,11.6582,214.29,214.22,4.1996]
[1758674995124,7.46,214.29,214.26,4.1988]
[1758674995320,7.46,214.29,214.26,11.2988]
[1758674996324,7.46,214.29,214.27,4.1984]
[1758674996725,7.57,214.33,214.27,4.1984]
[1758674997329,7.57,214.31,214.25,4.1989]
[1758674997531,7.57,214.35,214.19,7.1]
[1758674997730,7.57,214.33,214.19,7.1]
[1758674998026,7.57,214.31,214.19,7.1]
[1758674998419,7.57,214.35,214.24,4.199]
[1758674998625,7.57,214.33,214.22,7.1]
[1758674998928,7.57,214.31,214.22,7.1]
[1758674999229,4.1983,214.29,214.22,7.1]
[1758674999430,7.57,214.28,214.22,7.1]
[1758674999633,7.57,214.28,214.19,7.1]
[1758675000827,11.7684,214.28,214.19,11.3001]
[1758675001028,7.57,214.27,214.19,11.3001]
[1758675001234,7.57,214.3,214.19,11.3001]
[1758675001524,2.07971342,214.31,214.19,11.3001]
[1758675001525,1.16726411,214.29,214.19,11.3001]
[1758675001727,2.07971342,214.31,214.19,11.3001]
[1758675001927,1.16726411,214.3,214.19,11.3001]
[1758675002131,1.16726411,214.29,214.19,11.3001]
[1758675002326,11.7687,214.27,214.2,4.1998]
[1758675002631,7.57,214.27,214.19,7.1]
[1758675003233,7.57,214.27,214.21,4.1996]
[1758675005132,7.57,214.31,214.23,4.1993]
[1758675005326,7.57,214.29,214.23,4.1993]
[1758675005526,1.16726362,214.28,214.16,72.444]
[1758675005732,72.8711,214.31,214.16,7.1]
[1758675005930,74.95641342,214.29,214.16,7.1]
[1758675006129,7.57,214.27,214.16,7.1]
[1758675006329,7.57,214.22,214.16,11.3007]
[1758675006532,7.57,214.22,214.16,7.1]
[1758675006842,7.57,214.22,214.12,7.1]
[1758675007135,4.2,214.21,214.12,7.1]
[1758675007439,4.2,214.21,214.08,68.49971342]
[1758675007440,7.57,214.19,214.08,7.1]
[1758675007633,155.74461342,214.23,214.08,7.1]
[1758675007634,7.57,214.17,214.08,7.1]
[1758675008636,2.07971342,214.17,214.08,4.2022]
[1758675008836,7.57,214.16,214.08,4.2022]
[1758675009836,7.57,214.14,214.06,4.2027]
[1758675010035,7.57,214.14,214.04,7.1]
[1758675010836,7.57,214.12,214.04,11.303]
[1758675011128,7.57,214.12,214.04,7.1]
[1758675011334,7.57,214.12,214.04,11.3031]
[1758675011736,7.57,214.14,214.04,7.1]
[1758675011941,7.57,214.12,214.01,115.02]
[1758675012235,7.57,214.13,214.01,115.02]
[1758675012445,2.07971342,214.14,214.01,115.02]
[1758675012735,8.31809733,214.13,214.01,115.02]
[1758675012940,7.15,214.1,214.01,119.2235]
[1758675014033,7.15,214.08,214.01,119.2235]
[1758675014243,7.15,214.08,214.01,115.02]
[1758675014428,7.15,214.08,214.0,7.1]
[1758675015031,4.2025,214.07,214.0,7.1]
[1758675015433,7.15,214.06,214.0,7.1]
[1758675016739,7.15,214.06,213.95,7.2]
[1758675017940,7.15,214.06,213.95,11.4048]
[1758675019046,7.15,214.06,213.98,7.2]
[1758675020444,7.15,214.06,213.99,4.2041]
[1758675020745,7.15,214.06,214.0,7.2]
[1758675021841,7.15,214.06,214.02,7.2]
[1758675023349,7.53,214.08,213.98,11.3241]
[1758675023543,2.07971342,214.08,213.98,7.12]
[1758675023748,7.53,214.07,213.95,7.12]
[1758675024646,1.33268558,214.05,213.95,8.45268558]
[1758675024845,7.53,214.04,213.95,12.65738558]
[1758675025246,7.53,214.04,213.95,8.45268558]
[1758675025442,7.53,214.04,213.98,7.12]
[1758675030058,11.7331,214.04,213.98,7.12]
[1758675030258,11.7331,214.04,213.94,7.12]
[1758675030459,11.7331,214.04,213.95,1.33268558]
[1758675030657,13.06578558,214.04,213.95,1.33268558]
[1758675031351,8.86268558,214.04,213.95,5.53758558]
[1758675031556,7.53,214.04,213.96,7.12]
[1758675032465,7.53,214.04,213.98,7.12]
[1758675034459,7.53,214.04,213.97,1.33268558]
[1758675034969,7.53,214.02,213.93,1.33268558]
[1758675036167,7.53,214.02,213.94,7.12]
[1758675037766,7.53,214.02,213.95,4.2047]
[1758675038566,7.53,214.02,213.94,7.12]
[1758675039763,4.2038,214.01,213.94,7.12]
[1758675040164,7.53,214.02,213.94,7.12]
[1758675040971,7.53,213.98,213.9,7.12]
[1758675041172,1.33268558,213.97,213.9,7.12]
[1758675041864,5.53728558,213.97,213.9,7.12]
[1758675042674,11.7348,213.96,213.89,3.8696338]
[1758675042874,1.33268558,213.95,213.88,3.8696338]
[1758675043066,7.53,213.94,213.88,3.8696338]
[1758675043263,7.53,213.94,213.87,10.9896338]
[1758675043765,5.53808558,213.93,213.87,10.9896338]
[1758675043969,5.53808558,213.93,213.86,4.2066]
[1758675043970,7.53,213.92,213.86,8.0762338]
[1758675044878,7.53,213.92,213.86,4.2066]
[1758675048183,7.53,213.92,213.85,7.12]
[1758675048475,7.53,213.9,213.82,3.8696338]
[1758675048675,7.53,213.9,213.82,8.0770338]
[1758675049076,1.33268558,213.89,213.81,12.32231938]
[1758675050476,1.33268558,213.89,213.81,16.52981938]
[1758675050878,1.33268558,213.89,213.81,15.1971338]
[1758675051074,1.33268558,213.87,213.81,3.8696338]
[1758675051267,8.86268558,213.87,213.8,3.8696338]
[1758675051978,7.53,213.87,213.8,3.8696338]
[1758675052175,7.53,213.87,213.8,10.9896338]
[1758675052874,7.53,213.87,213.81,4.2074]
[1758675053872,7.53,213.87,213.81,7.55]
[1758675054076,7.53,213.87,213.81,11.4196338]
[1758675055883,7.53,213.87,213.81,11.7576]
[1758675056578,7.53,213.87,213.81,7.55]
[1758675056774,7.53,213.87,213.8,3.8696338]
[1758675056975,7.53,213.87,213.79,3.8696338]
[1758675057881,7.66,213.85,213.78,11.4196338]
[1758675058274,11.867,213.85,213.78,11.4196338]
[1758675059184,4.2073,213.83,213.78,11.4196338]
[1758675059487,7.66,213.82,213.76,3.8696338]
[1758675059979,7.66,213.82,213.73,6.51571068]
[1758675059980,7.66,213.81,213.74,3.8696338]
[1758675060178,7.66,213.81,213.73,3.8696338]
[1758675060384,7.66,213.79,213.73,3.8696338]
[1758675060779,11.8681,213.79,213.73,3.8696338]
[1758675061283,7.66,213.79,213.71,7.55]
[1758675061585,7.66,213.77,213.71,7.55]
[1758675062177,7.66,213.77,213.68,11.76]
[1758675062980,11.8685,213.77,213.69,4.2098]
[1758675063182,7.66,213.77,213.68,7.55]
[1758675063580,7.66,213.77,213.71,4.2095]
[1758675064177,7.66,213.77,213.68,13.09268558]
[1758675064387,8.99268558,213.77,213.68,13.09268558]
[1758675065084,1.33268558,213.77,213.68,11.76]
[1758675065290,7.66,213.76,213.68,11.76]
[1758675065789,4.2089,213.75,213.68,11.76]
[1758675065980,7.66,213.76,213.68,7.55]
[1758675066587,7.66,213.73,213.65,7.55]
[1758675067385,7.66,213.73,213.65,11.7606]
[1758675067990,7.66,213.73,213.67,7.55]
[1758675070092,7.66,213.73,213.67,11.7602]
[1758675071092,7.66,213.78,213.7,7.55]
[1758675071693,8.99268558,213.78,213.7,7.55]
[1758675073891,13.20098558,213.78,213.7,7.55]
[1758675074991,27.07979893,213.78,213.7,7.55]
[1758675075386,7.66,213.78,213.69,1.33268558]
[1758675075591,45.7878,213.81,213.73,7.56]
[1758675075798,41.58,213.81,213.73,7.56]
[1758675075995,7.15,213.8,213.73,7.56]
[1758675076391,11.358,213.8,213.73,7.56]
[1758675076794,7.15,213.8,213.73,11.7691]
[1758675076992,7.15,213.8,213.73,7.56]
[1758675077199,7.15,213.84,213.76,7.56]
[1758675078603,11.3571,213.84,213.76,7.56]
[1758675078805,353.6,213.86,213.79,7.56]
[1758675079802,353.6,213.86,213.79,11.7678]
[1758675079998,353.6,213.86,213.79,7.56]
[1758675080203,7.15,213.85,213.76,1.33268558]
[1758675081202,4.2072,213.84,213.76,1.33268558]
[1758675081403,4.2072,213.84,213.77,7.56]
[1758675081895,7.15,213.85,213.77,7.56]
[1758675082092,7.15,213.85,213.79,1.33268558]
[1758675082293,7.15,213.85,213.79,8.89268558]
[1758675082495,8.48268558,213.91,213.8,7.56]
[1758675082701,7.15,213.89,213.8,7.56]
[1758675083093,7.15,213.89,213.81,1.33268558]
[1758675083298,11.3562,213.89,213.81,1.33268558]
[1758675083499,7.15,213.89,213.81,1.33268558]
[1758675084108,7.15,213.89,213.85,7.6]
[1758675084903,11.4058,213.91,213.81,9.68461453]
[1758675085205,7.2,213.91,213.81,9.68461453]
[1758675085703,4.206,213.9,213.81,13.89221453]
[1758675086398,7.2,213.88,213.81,7.6]
[1758675088000,7.2,213.88,213.82,4.2073]
[1758675088397,7.2,213.88,213.81,7.6]
[1758675088809,7.2,213.92,213.82,7.6]
[1758675089900,7.2,213.92,213.84,4.2069]
[1758675090105,7.2,213.92,213.84,7.6]
[1758675090708,11.4047,213.96,213.87,11.8063]
[1758675091403,25.16254,213.96,213.87,11.8063]
[1758675091609,20.95784,213.96,213.87,7.6]
[1758675092408,11.4054,213.93,213.87,7.6]
[1758675092604,7.2,213.93,213.87,7.6]
[1758675093905,7.2,213.93,213.87,11.8063]
[1758675094115,7.2,213.93,213.81,2.08461453]
[1758675094318,7.2,213.93,213.82,7.6]
[1758675094811,7.2,213.93,213.84,7.6]
[1758675097815,11.4054,213.93,213.85,4.2068]
[1758675098217,7.2,213.93,213.84,7.6]
[1758675098411,7.2,213.93,213.85,4.2068]
[1758675099415,7.2,213.93,213.84,7.6]
[1758675100015,4.2056,213.92,213.84,11.8069]
[1758675102122,4.2056,213.92,213.85,4.2067]
[1758675104326,7.2,213.93,213.86,4.2065]
[1758675104626,7.2,213.93,213.84,7.6]
[1758675105420,11.4054,213.93,213.87,4.2063]
[1758675106428,11.4054,213.93,213.85,4.2067]
[1758675109029,11.4054,213.93,213.86,4.2065]
[1758675110133,7.2,213.93,213.87,7.6]
[1758675111829,7.2,213.93,213.89,7.6]
[1758675112436,4.2046,213.97,213.83,71.43846332]
[1758675112641,7.2,213.97,213.88,7.6]
[1758675113440,7.2,213.97,213.89,4.206]
[1758675113939,11.4046,213.97,213.88,7.6]
[1758675114140,11.4046,213.97,213.91,11.7556]
[1758675114534,7.2,213.97,213.91,11.7556]
[1758675116543,126.664,214.0,213.93,11.7553]
[1758675116844,122.44,214.03,213.93,7.55]
[1758675117934,126.6434,214.03,213.96,4.2046]
[1758675118543,140.68393964,214.03,213.96,4.2046]
[1758675119247,7.44,214.09,213.96,7.55]
[1758675119435,7.44,214.09,213.98,7.55]
[1758675119841,21.76372342,214.09,213.98,7.55]
[1758675120042,21.76372342,214.09,213.97,4.2045]
[1758675120241,4.2032,214.04,213.95,11.46234707]
[1758675120537,7.44,214.03,213.92,3.91234707]
[1758675120737,7.44,214.03,213.91,11.46234707]
[1758675120938,7.44,213.98,213.91,11.46234707]
[1758675121134,7.44,213.98,213.91,7.55]
[1758675121538,7.44,213.96,213.88,17.7531616]
[1758675121841,7.44,213.96,213.88,7.55]
[1758675122046,114.98,214.02,213.9,3.91234707]
[1758675122247,7.44,214.01,213.91,7.55]
[1758675122836,11.6437,214.01,213.92,4.2053]
[1758675123850,7.44,214.01,213.91,7.55]
[1758675124045,7.44,214.01,213.88,3.91234707]
[1758675124248,72.8331,214.01,213.87,11.46234707]
[1758675124448,7.44,213.95,213.88,4.2062]
[1758675125744,7.44,213.95,213.87,11.46234707]
[1758675126249,11.6451,213.94,213.87,11.46234707]
[1758675130755,2.08461453,214.0,213.88,7.55]
[1758675130948,7.44,213.99,213.89,7.55]
[1758675131149,7.44,213.99,213.9,3.91234707]
[1758675131455,7.44,213.99,213.91,11.46234707]
[1758675131655,7.44,213.99,213.92,7.55]
[1758675131858,7.44,213.99,213.92,11.46234707]